[Event "12th Philadelphia Open"]
[Site "Philadelphia"]
[Date "2018.03.31"]
[Round "6.4"]
[White "Li, Ruifeng"]
[Black "Hong, Andrew"]
[Result "1-0"]
[ECO "B20"]
[WhiteElo "2585"]
[BlackElo "2365"]
[PlyCount "117"]
[EventDate "2018.03.??"]
[EventType "swiss"]
[EventRounds "9"]
[EventCountry "USA"]
[TimeControl "5400+30"]
[WhiteClock "0:12:54"]
[BlackClock "0:00:04"]

1. e4 {[%emt 0:00:00]} c5 {[%emt 0:00:00]} 2. Ne2 {[%emt 0:00:00]} Nf6 {
[%emt 0:00:00]} 3. Nbc3 {[%emt 0:00:00]} d5 {[%emt 0:00:00]} 4. exd5 {[%emt 0:
00:00]} Nxd5 {[%emt 0:00:00]} 5. g3 {[%emt 0:00:00]} Nc6 {[%emt 0:00:00]} 6.
Bg2 {[%emt 0:00:00]} Nc7 {[%emt 0:00:00]} 7. O-O {[%emt 0:00:00]} g6 {[%emt 0:
00:00]} 8. d3 {[%emt 0:00:00]} Bg7 {[%emt 0:00:00]} 9. Ne4 {[%emt 0:00:00]} Na6
{[%emt 0:11:08]} 10. c3 {[%emt 0:00:00]} Bf5 {[%emt 0:13:05]} 11. Be3 {[%emt 0:
00:00]} Rc8 {[%emt 0:09:41]} 12. Nxc5 {[%emt 0:05:11]} Nxc5 {[%emt 0:01:14]}
13. Bxc5 {[%emt 0:00:30]} Qxd3 {[%emt 0:09:00]} 14. Qxd3 {[%emt 0:10:27]} Bxd3
{[%emt 0:00:30]} 15. Rfe1 {[%emt 0:00:30]} Rc7 {[%emt 0:12:24]} 16. Nf4 {
[%emt 0:02:25]} Bf5 {[%emt 0:04:19]} 17. Rad1 {[%emt 0:05:40]} e5 {[%emt 0:07:
47]} 18. Nd5 {[%emt 0:03:27]} Rd7 {[%emt 0:02:53]} 19. b4 {[%emt 0:02:26]} b6 {
[%emt 0:03:16]} 20. Be3 {[%emt 0:13:38]} Ne7 {[%emt 0:05:32]} 21. c4 {[%emt 0:
01:24]} Nxd5 {[%emt 0:02:55]} 22. Bxd5 {[%emt 0:00:52]} O-O {[%emt 0:01:51]}
23. Bc6 {[%emt 0:03:24]} Rxd1 {[%emt 0:02:16]} 24. Rxd1 {[%emt 0:00:30]} Rc8 {
[%emt 0:00:51]} 25. Bb7 {[%emt 0:01:05]} Rb8 {[%emt 0:07:45]} 26. c5 {[%emt 0:
00:36]} Bf6 {[%emt 0:02:13]} 27. c6 {[%emt 0:01:49]} Bd8 {[%emt 0:01:04]} 28.
a4 {[%emt 0:02:24]} f6 {[%emt 0:02:34]} 29. a5 {[%emt 0:02:53]} Kf7 {[%emt 0:
00:59]} 30. b5 {[%emt 0:13:43]} Ke7 {[%emt 0:00:43]} 31. axb6 {[%emt 0:03:21]}
axb6 {[%emt 0:00:55]} 32. Bd2 {[%emt 0:01:06]} Bc7 {[%emt 0:00:41]} 33. Bb4+ {
[%emt 0:00:42]} Ke8 {[%emt 0:00:48]} 34. Ra1 {[%emt 0:02:08]} Bd3 {[%emt 0:00:
50]} 35. Ra7 {[%emt 0:03:38]} Bxb5 {[%emt 0:00:30]} 36. Ba8 {[%emt 0:00:30]}
Rc8 {[%emt 0:00:38]} 37. f3 {[%emt 0:01:24]} Kd8 {[%emt 0:00:30]} 38. Kf2 {
[%emt 0:05:56]} h5 {[%emt 0:00:30]} 39. h4 {[%emt 0:00:57]} Ke8 {[%emt 0:00:30]
} 40. Ke3 {[%emt 0:06:10]} Kd8 {[%emt 0:00:30]} 41. Ke4 {[%emt 0:04:23]} Bc4 {
[%emt 0:00:00]} 42. g4 {[%emt 0:00:00]} hxg4 {[%emt 0:00:00]} 43. fxg4 {
[%emt 0:00:00]} Be2 {[%emt 0:00:00]} 44. Bb7 {[%emt 0:00:00]} Rb8 {[%emt 0:00:
00]} 45. g5 {[%emt 0:00:00]} fxg5 {[%emt 0:00:00]} 46. hxg5 {[%emt 0:00:00]}
Bc4 {[%emt 0:00:00]} 47. Bc3 {[%emt 0:00:00]} b5 {[%emt 0:00:00]} 48. Ba6 {
[%emt 0:00:00]} Rb6 {[%emt 0:01:55]} 49. Bb7 {[%emt 0:00:00]} b4 {[%emt 0:00:
40]} 50. Bxe5 {[%emt 0:00:00]} Bxe5 {[%emt 0:01:31]} 51. Kxe5 {[%emt 0:00:00]}
Kc7 {[%emt 0:00:30]} 52. Ba8+ {[%emt 0:00:00]} Kb8 {[%emt 0:00:31]} 53. c7+ {
[%emt 0:00:00]} Kc8 {[%emt 0:00:35]} 54. Bf3 {[%emt 0:00:00]} Be6 {[%emt 0:00:
39]} 55. Be2 {[%emt 0:00:12]} b3 {[%emt 0:01:02]} 56. Ra6 {[%emt 0:01:45]} Kxc7
{[%emt 0:00:41]} 57. Rxb6 {[%emt 0:00:30]} Kxb6 {[%emt 0:00:30]} 58. Kxe6 {
[%emt 0:00:30]} b2 {[%emt 0:00:30]} 59. Bd3 1-0

[Event "12th Philadelphia Open"]
[Site "Philadelphia"]
[Date "2018.03.31"]
[Round "7"]
[White "Burke, John M"]
[Black "Katz, Alexander"]
[Result "1-0"]
[ECO "B09"]
[WhiteElo "2525"]
[BlackElo "2347"]
[PlyCount "89"]
[EventDate "2018.03.??"]
[EventType "swiss"]
[EventRounds "9"]
[EventCountry "USA"]
[TimeControl "5400+30"]

1. e4 d6 2. d4 Nf6 3. Nc3 g6 4. f4 Bg7 5. Bd3 O-O 6. Nf3 Nc6 7. e5 dxe5 8. fxe5
Nh5 9. Be3 Bg4 10. Be2 f6 11. exf6 exf6 12. d5 Qe7 13. Qd2 Rad8 14. O-O-O Rfe8
15. Rhe1 Qf8 16. Kb1 f5 17. Bg5 Nf6 18. Qf4 Nb4 19. h3 Bh5 20. Qc4 b5 21. Qb3
Kh8 22. a3 Na6 23. Bxb5 Rxe1 24. Rxe1 Nc5 25. Qc4 Rb8 26. Ne5 a6 27. d6 axb5
28. Qxc5 cxd6 29. Qxd6 h6 30. Qxf8+ Rxf8 31. Bxf6 Bxf6 32. Nxb5 Bh4 33. Re3 f4
34. Re4 Kg7 35. Nd3 g5 36. Nd4 f3 37. gxf3 Bxf3 38. Rxh4 gxh4 39. Ne6+ Kf7 40.
Nxf8 Kxf8 41. Kc1 Ke7 42. Kd2 Kd6 43. Ke3 Bg2 44. Nf4 Bf1 45. Kd4 1-0

[Event "12th Philadelphia Open"]
[Site "Philadelphia"]
[Date "2018.03.31"]
[Round "7"]
[White "Homa, Seth"]
[Black "Zhou, Liran"]
[Result "1-0"]
[ECO "E92"]
[WhiteElo "2247"]
[BlackElo "2046"]
[PlyCount "91"]
[EventDate "2018.03.??"]
[EventType "swiss"]
[EventRounds "9"]
[EventCountry "USA"]
[TimeControl "5400+30"]

1. c4 Nf6 2. Nc3 g6 3. e4 d6 4. d4 Bg7 5. Nf3 O-O 6. Be2 e5 7. d5 a5 8. O-O Na6
9. Bg5 h6 10. Bh4 Qe8 11. Nd2 Bd7 12. b3 Nh7 13. Rb1 h5 14. f3 Bh6 15. a3 Be3+
16. Kh1 Nc5 17. Qc2 g5 18. Be1 Qe7 19. b4 axb4 20. axb4 Na4 21. Nd1 Bxd2 22.
Bxd2 f5 23. Nf2 f4 24. c5 dxc5 25. bxc5 Qxc5 26. Qxc5 Nxc5 27. Bb4 b6 28. Bxc5
bxc5 29. Nd3 Rfe8 30. Nxc5 Re7 31. Ra1 Rxa1 32. Rxa1 Kf7 33. Ra7 Bc8 34. Bc4
Kf6 35. Ra8 Bd7 36. Ra6+ Kg7 37. Ra7 Nf8 38. Rxc7 Kf6 39. d6 Rg7 40. h3 g4 41.
hxg4 hxg4 42. Nxd7+ Rxd7 43. Rxd7 Nxd7 44. fxg4 Nc5 45. Bd5 Nd3 46. g5+ 1-0

[Event "12th Philadelphia Open"]
[Site "Philadelphia"]
[Date "2018.03.31"]
[Round "7"]
[White "Mujumdar, Sameer"]
[Black "Otchiyev, Arslan"]
[Result "0-1"]
[ECO "A16"]
[WhiteElo "2092"]
[BlackElo "2369"]
[PlyCount "138"]
[EventDate "2018.03.??"]
[EventType "swiss"]
[EventRounds "9"]
[EventCountry "USA"]
[TimeControl "5400+30"]

1. c4 Nf6 2. Nc3 g6 3. g3 Bg7 4. Bg2 O-O 5. e3 d6 6. Nge2 c6 7. d4 Nbd7 8. O-O
Qc7 9. b3 a6 10. Bb2 Rb8 11. d5 Re8 12. Qd2 Nf8 13. Rac1 c5 14. e4 b5 15. cxb5
axb5 16. b4 N6d7 17. Nd1 Bxb2 18. Nxb2 Qa7 19. Nd3 c4 20. Ne1 Ne5 21. Nd4 Bd7
22. Rc2 Ra8 23. Ndf3 Qb6 24. Qc3 f6 25. Nxe5 dxe5 26. Rd2 Qa7 27. Nf3 Qa3 28.
Rc1 Qxc3 29. Rxc3 Ra4 30. Rb2 e6 31. Ne1 Rea8 32. Rcc2 exd5 33. exd5 Bf5 34. d6
R8a6 35. Rc1 Rxd6 36. Bf3 Ne6 37. g4 Bd3 38. Nxd3 Rxd3 39. Bc6 Nd4 40. Rxc4
bxc4 41. Bxa4 c3 42. Rb1 c2 43. Bxc2 Nxc2 44. b5 Na3 45. Rb4 Rd7 46. b6 Rb7 47.
Ra4 Nb5 48. Ra8+ Kf7 49. a4 Nd6 50. Ra7 Ke6 51. a5 Rb8 52. Rxh7 g5 53. Kg2 Kd5
54. Rc7 Nc4 55. Rd7+ Kc5 56. Rf7 Nxa5 57. Rxf6 Rg8 58. Kg3 Nc4 59. b7 Nd6 60.
Rg6 Rb8 61. Rg7 Rxb7 62. Rxb7 Nxb7 63. h4 gxh4+ 64. Kxh4 Kd5 65. Kg5 Ke6 66.
Kh4 Nc5 67. f3 Kf6 68. Kh5 Ne6 69. Kh6 Ng5 0-1

[Event "12th Philadelphia Open"]
[Site "Philadelphia"]
[Date "2018.03.31"]
[Round "7"]
[White "Niemann, Hans"]
[Black "Subervi, Jonathan"]
[Result "1-0"]
[ECO "D30"]
[WhiteElo "2302"]
[BlackElo "2145"]
[PlyCount "87"]
[EventDate "2018.03.??"]
[EventType "swiss"]
[EventRounds "9"]
[EventCountry "USA"]
[TimeControl "5400+30"]

1. d4 d5 2. c4 e6 3. Nf3 Nf6 4. g3 Bb4+ 5. Bd2 Bd6 6. Bg2 O-O 7. O-O Ne4 8. Nc3
Nxd2 9. Nxd2 c6 10. e4 Nd7 11. exd5 exd5 12. cxd5 cxd5 13. Nxd5 Nb6 14. Nxb6
axb6 15. Ne4 Be7 16. Qd2 f5 17. Nc3 f4 18. Qd3 Ra5 19. d5 Bg4 20. Be4 Bd6 21.
a3 Kh8 22. Ne2 Qg5 23. b4 Raa8 24. Nd4 Qh5 25. Bf3 Bxf3 26. Qxf3 Qe5 27. Ne6
Rf5 28. g4 Qxd5 29. Qxd5 Rxd5 30. Rfd1 Rxd1+ 31. Rxd1 Be5 32. Rd5 Bb2 33. Nxf4
Kg8 34. Rb5 Rxa3 35. Rxb6 Rf3 36. Ne6 Rf6 37. g5 Rf5 38. Rxb7 Re5 39. Rxg7+ Kh8
40. Re7 Kg8 41. f4 Re2 42. f5 Ba3 43. f6 Bxb4 44. f7+ 1-0

[Event "12th Philadelphia Open"]
[Site "Philadelphia"]
[Date "2018.03.31"]
[Round "7"]
[White "Panda, Vedic"]
[Black "Ni, Winston"]
[Result "1/2-1/2"]
[ECO "D26"]
[WhiteElo "2021"]
[BlackElo "1963"]
[PlyCount "52"]
[EventDate "2018.03.??"]
[EventType "swiss"]
[EventRounds "9"]
[EventCountry "USA"]
[TimeControl "5400+30"]

1. d4 d5 2. c4 dxc4 3. Nf3 Nf6 4. e3 e6 5. Bxc4 a6 6. O-O b5 7. Bb3 Bb7 8. a4
Nbd7 9. Qe2 c5 10. Rd1 Be7 11. Nbd2 Qb6 12. axb5 axb5 13. Rxa8+ Bxa8 14. dxc5
Bxc5 15. Bc2 O-O 16. b3 Bc6 17. Bb2 Qb7 18. e4 Ra8 19. Bb1 h6 20. Rc1 Qb6 21.
Ne1 e5 22. Nd3 Bd6 23. Kh1 Re8 24. f3 Nf8 25. Nf1 Ng6 26. Ne3 Bd7 1/2-1/2

[Event "12th Philadelphia Open"]
[Site "Philadelphia"]
[Date "2018.03.31"]
[Round "7"]
[White "Popilski, Gil"]
[Black "Brodsky, David"]
[Result "1-0"]
[ECO "E12"]
[WhiteElo "2502"]
[BlackElo "2409"]
[PlyCount "113"]
[EventDate "2018.03.??"]
[EventType "swiss"]
[EventRounds "9"]
[EventCountry "USA"]
[TimeControl "5400+30"]

1. Nf3 Nf6 2. c4 b6 3. d4 e6 4. a3 Ba6 5. Nbd2 Bb7 6. e3 Be7 7. Bd3 d5 8. Qa4+
Nbd7 9. cxd5 exd5 10. Ne5 O-O 11. Bb5 Nxe5 12. dxe5 Ne4 13. Nxe4 dxe4 14. Bd2
Qd5 15. Bc3 a6 16. Bc4 Qc5 17. Bd4 Qc6 18. Qxc6 Bxc6 19. e6 f6 20. b4 Rfd8 21.
Ke2 Kf8 22. g4 Ba4 23. Rac1 c5 24. bxc5 bxc5 25. Ba1 Rd6 26. Rb1 Rad8 27. Rhc1
Bb5 28. Bxb5 axb5 29. Rxb5 Rxe6 30. Rc4 Ra8 31. Bb2 Ra7 32. Rb8+ Kf7 33. h3 g6
34. Kd1 Bd6 35. Rc8 Be5 36. Bc1 Bd6 37. a4 f5 38. Ba3 Re8 39. Rc6 Rd8 40. Ke2
Rb7 41. gxf5 gxf5 42. Rc2 f4 43. exf4 Rb1 44. Rb2 Ra1 45. Rb7+ Kg8 46. Bb2 Ra2
47. Ke3 Bf8 48. Ra6 Re8 49. f5 c4 50. f6 Bh6+ 51. f4 exf3+ 52. Kxf3 Rf8 53. Ke4
Rf7 54. Ra8+ Bf8 55. Rbb8 h5 56. Kf5 c3 57. Kg6 1-0

[Event "12th Philadelphia Open"]
[Site "Philadelphia"]
[Date "2018.03.31"]
[Round "7"]
[White "Shabalov, Alexander"]
[Black "Panchanatham, Vignesh"]
[Result "1/2-1/2"]
[ECO "D11"]
[WhiteElo "2568"]
[BlackElo "2384"]
[PlyCount "65"]
[EventDate "2018.03.??"]
[EventType "swiss"]
[EventRounds "9"]
[EventCountry "USA"]
[TimeControl "5400+30"]

1. d4 d5 2. c4 c6 3. Nf3 Nf6 4. Nbd2 g6 5. g3 Bg7 6. Bg2 O-O 7. O-O Ne4 8. Qb3
f5 9. Ne5 e6 10. Ndf3 a5 11. Qc2 Nd7 12. Bf4 g5 13. Nxd7 Bxd7 14. Be5 g4 15.
Ne1 Bxe5 16. dxe5 Qg5 17. Rd1 h5 18. f4 Qe7 19. Bxe4 Qc5+ 20. Kg2 fxe4 21. cxd5
Qxc2 22. Nxc2 exd5 23. Ne3 Bf5 24. Kf2 Ra6 25. h3 gxh3 26. Nxf5 Rxf5 27. Rh1
Rb6 28. Rd2 Rb4 29. Ke3 Rc4 30. Rd4 Rc2 31. Rd2 Rc4 32. Rd4 Rc2 33. Rd2 1/2-1/2

[Event "12th Philadelphia Open"]
[Site "Philadelphia"]
[Date "2018.03.31"]
[Round "7"]
[White "Shetty, Atulya"]
[Black "Miyasaka, Marcus"]
[Result "1/2-1/2"]
[ECO "A15"]
[WhiteElo "2391"]
[BlackElo "2134"]
[PlyCount "75"]
[EventDate "2018.03.??"]
[EventType "swiss"]
[EventRounds "9"]
[EventCountry "USA"]
[TimeControl "5400+30"]

1. c4 Nf6 2. g3 e6 3. Bg2 d5 4. Nf3 Nc6 5. O-O d4 6. e3 Be7 7. exd4 Nxd4 8.
Nxd4 Qxd4 9. Qa4+ Nd7 10. Nc3 O-O 11. Nb5 Qb6 12. d3 c6 13. Nc3 e5 14. Qc2 Nc5
15. Re1 Qc7 16. Qe2 Bf6 17. Ne4 Nxe4 18. Bxe4 Be6 19. h4 Qd7 20. Bd2 Rad8 21.
Bc3 Rfe8 22. b4 g6 23. Rad1 Bg4 24. Bf3 Bxf3 25. Qxf3 Bg7 26. a4 Re6 27. b5 c5
28. a5 h5 29. Bd2 Rd6 30. Bg5 f6 31. Be3 b6 32. axb6 axb6 33. Rd2 Rxd3 34. Red1
Rxd2 35. Rxd2 Qe7 36. Qc6 Rxd2 37. Bxd2 Qd8 38. Be3 1/2-1/2

[Event "12th Philadelphia Open"]
[Site "Philadelphia"]
[Date "2018.03.31"]
[Round "7"]
[White "Tian, Eddy"]
[Black "Kretchetov, Alexandre"]
[Result "1/2-1/2"]
[ECO "C60"]
[WhiteElo "1921"]
[BlackElo "2244"]
[PlyCount "114"]
[EventDate "2018.03.??"]
[EventType "swiss"]
[EventRounds "9"]
[EventCountry "USA"]
[TimeControl "5400+30"]

1. e4 e5 2. Nf3 Nc6 3. Bb5 g6 4. d4 exd4 5. Bg5 Be7 6. Bxe7 Qxe7 7. Bxc6 dxc6
8. Qxd4 Nf6 9. Nc3 Bg4 10. Nd2 c5 11. Qe3 O-O-O 12. h3 Bd7 13. O-O-O Bc6 14. f3
Rhe8 15. Rhe1 b6 16. Nf1 Nd7 17. Rd2 f6 18. Qe2 Bb7 19. Ne3 Ne5 20. Red1 Nc6
21. Rxd8+ Rxd8 22. Ncd5 Qe6 23. c3 Ne5 24. a3 c6 25. Nf4 Qa2 26. Rxd8+ Kxd8 27.
Qd2+ Ke7 28. Nd3 Nc4 29. Nxc4 Qxc4 30. e5 Ba6 31. exf6+ Kxf6 32. Nf4 Ke5 33.
Qe3+ Kf6 34. h4 h6 35. Kc2 g5 36. hxg5+ hxg5 37. Nh5+ Kg6 38. Ng3 Qd5 39. Qe4+
Qxe4+ 40. fxe4 Kf6 41. Kd2 Ke5 42. Ke3 Bc4 43. Nh1 Bf1 44. g3 c4 45. Nf2 c5 46.
Ng4+ Ke6 47. Nh2 Bg2 48. Nf3 Kf6 49. Nd2 b5 50. a4 a6 51. axb5 axb5 52. Kf2 Bh3
53. Kf3 Bc8 54. Nf1 Ke5 55. Ne3 Bb7 56. Ng4+ Ke6 57. Nf2 Kf6 1/2-1/2

[Event "12th Philadelphia Open"]
[Site "Philadelphia"]
[Date "2018.03.31"]
[Round "7"]
[White "Turgut, Aydin"]
[Black "Saravanan, V."]
[Result "1/2-1/2"]
[ECO "B90"]
[WhiteElo "2190"]
[BlackElo "2326"]
[PlyCount "60"]
[EventDate "2018.03.??"]
[EventType "swiss"]
[EventRounds "9"]
[EventCountry "USA"]
[TimeControl "5400+30"]

1. e4 c5 2. Nf3 d6 3. d4 cxd4 4. Nxd4 Nf6 5. Nc3 a6 6. h3 e5 7. Nde2 b5 8. g4
Bb7 9. Bg2 h6 10. O-O Nbd7 11. Ng3 Rc8 12. f4 b4 13. Nd5 Nxd5 14. exd5 Be7 15.
Nf5 O-O 16. g5 hxg5 17. fxg5 g6 18. Nh6+ Kg7 19. Qg4 Nb6 20. Qh4 Rc4 21. Ng4
Nxd5 22. Bxd5 Qb6+ 23. Rf2 Rh8 24. Be3 Rxh4 25. Rxf7+ Kh8 26. Bxb6 Bxd5 27.
Rxe7 Rcxg4+ 28. hxg4 Rh1+ 29. Kf2 Rxa1 30. Bc7 Be4 1/2-1/2

[Event "12th Philadelphia Open"]
[Site "Philadelphia"]
[Date "2018.03.31"]
[Round "7"]
[White "Wang, Qibiao"]
[Black "Yanovsky, Vlad"]
[Result "1-0"]
[ECO "A49"]
[WhiteElo "2324"]
[BlackElo "2112"]
[PlyCount "67"]
[EventDate "2018.03.??"]
[EventType "swiss"]
[EventRounds "9"]
[EventCountry "USA"]
[TimeControl "5400+30"]

1. d4 Nf6 2. Nf3 g6 3. g3 Bg7 4. Bg2 O-O 5. O-O d6 6. b3 Nc6 7. Bb2 e5 8. dxe5
Ng4 9. c4 Ngxe5 10. Nxe5 dxe5 11. Nc3 Nd4 12. e3 Nf5 13. Ba3 Re8 14. Qxd8 Rxd8
15. Rad1 Rxd1 16. Rxd1 Bf6 17. Ne4 Be7 18. Bxe7 Nxe7 19. Nf6+ Kg7 20. Ne8+ Kh6
21. Nxc7 Bg4 22. Nxa8 Bxd1 23. Bxb7 Bc2 24. f3 Bb1 25. a3 Ba2 26. Nc7 Bxb3 27.
c5 Kg7 28. Nb5 a5 29. e4 Kf6 30. Nc7 Ba4 31. Kf2 Bc6 32. Ba6 Ng8 33. Nd5+ Ke6
34. Bc8+ 1-0

[Event "12th Philadelphia Open"]
[Site "Philadelphia"]
[Date "2018.03.31"]
[Round "7"]
[White "Yanayt, Eugene"]
[Black "Peng, Shunkai"]
[Result "1/2-1/2"]
[ECO "E10"]
[WhiteElo "2127"]
[BlackElo "2291"]
[PlyCount "139"]
[EventDate "2018.03.??"]
[EventType "swiss"]
[EventRounds "9"]
[EventCountry "USA"]
[TimeControl "5400+30"]

1. d4 Nf6 2. c4 e6 3. Nf3 d5 4. g3 Be7 5. Bg2 O-O 6. O-O dxc4 7. Na3 Bxa3 8.
bxa3 Bd7 9. Ne5 Bc6 10. Nxc6 Nxc6 11. Bb2 Nd5 12. Rc1 Nb6 13. e3 Qg5 14. a4
Rfd8 15. Bc3 a5 16. Rb1 Qe7 17. Qc1 Ra7 18. Rb5 Nd5 19. Rc5 Ncb4 20. Qa3 Qd7
21. Rxc4 Nb6 22. Rc5 Nxa4 23. Bc6 Nxc6 24. Qxa4 Nb4 25. Qxd7 Rxd7 26. Bxb4 axb4
27. Rb1 Rxa2 28. Rxb4 c6 29. Rxc6 g6 30. Rc8+ Kg7 31. Rb8 Rc7 32. d5 e5 33. d6
Rd7 34. R8xb7 Rxd6 35. Rb2 Rd1+ 36. Kg2 Raa1 37. Re7 Rg1+ 38. Kf3 Ra6 39. Rxe5
Rf6+ 40. Kg4 Rg2 41. Kh3 Rgxf2 42. Rxf2 Rxf2 43. g4 Kf6 44. Re4 Rd2 45. Kg3 Rd5
46. h4 h6 47. Kf4 Rd1 48. Kg3 Rd2 49. h5 gxh5 50. Rf4+ Ke6 51. gxh5 Rd5 52.
Re4+ Kf6 53. Rf4+ Kg7 54. Kg4 Rg5+ 55. Kh4 Re5 56. e4 Kf8 57. Rg4 Ke7 58. Rf4
f6 59. Rg4 Rg5 60. Rg3 Ke6 61. Ra3 Rg1 62. Ra7 Ke5 63. Rf7 Re1 64. Kg3 Rg1+ 65.
Kh3 Rh1+ 66. Kg4 Re1 67. Re7+ Kd6 68. Rh7 Ke6 69. Kf4 Rf1+ 70. Ke3 1/2-1/2

[Event "12th Philadelphia Open"]
[Site "Philadelphia"]
[Date "2018.03.31"]
[Round "7"]
[White "Yip, Carissa"]
[Black "Tang, Andrew"]
[Result "1-0"]
[ECO "E04"]
[WhiteElo "2290"]
[BlackElo "2509"]
[PlyCount "93"]
[EventDate "2018.03.??"]
[EventType "swiss"]
[EventRounds "9"]
[EventCountry "USA"]
[TimeControl "5400+30"]

1. d4 d5 2. c4 e6 3. Nf3 Nf6 4. g3 dxc4 5. Bg2 Nc6 6. Qa4 Bd6 7. Qxc4 O-O 8.
O-O e5 9. dxe5 Nxe5 10. Nxe5 Bxe5 11. Nc3 c6 12. Rd1 Qe7 13. e4 Be6 14. Qe2
Rfd8 15. Be3 Ng4 16. Rxd8+ Rxd8 17. Bxa7 b5 18. Bb6 Rb8 19. Be3 Nxe3 20. Qxe3
Rd8 21. a3 Bd4 22. Qf3 b4 23. axb4 Qxb4 24. Rb1 Bb3 25. Rc1 Be6 26. Rb1 h6 27.
h4 Bb3 28. Rc1 Ba7 29. Qf4 Be6 30. Rc2 Rd3 31. Kh2 Bb8 32. e5 Rd4 33. Qe3 Ba7
34. Qf3 Qb3 35. Re2 Bg4 36. Qxc6 Bxe2 37. Qe8+ Kh7 38. Nxe2 Rb4 39. Qd7 Qc4 40.
Nc3 Bxf2 41. Qf5+ Kg8 42. Qxf2 Qb3 43. Nd5 Qxb2 44. Ne7+ Kf8 45. Qc5 Rb7 46.
Ng6+ Kg8 47. Qc8+ 1-0

[Event "12th Philadelphia Open"]
[Site "Philadelphia"]
[Date "2018.03.31"]
[Round "7.2"]
[White "Checa, Nicolas"]
[Black "Zhou, Jianchao"]
[Result "0-1"]
[ECO "D37"]
[WhiteElo "2485"]
[BlackElo "2611"]
[PlyCount "108"]
[EventDate "2018.03.??"]
[EventType "swiss"]
[EventRounds "9"]
[EventCountry "USA"]
[TimeControl "5400+30"]
[WhiteClock "0:37:47"]
[BlackClock "0:01:11"]

1. d4 {[%emt 0:00:00]} Nf6 {[%emt 0:00:00]} 2. c4 {[%emt 0:00:00]} e6 {[%emt 0:
00:00]} 3. Nf3 {[%emt 0:00:00]} d5 {[%emt 0:00:00]} 4. Nc3 {[%emt 0:00:00]} Be7
{[%emt 0:00:00]} 5. Bf4 {[%emt 0:00:00]} O-O {[%emt 0:00:00]} 6. Rc1 {[%emt 0:
00:00]} c5 {[%emt 0:00:00]} 7. dxc5 {[%emt 0:00:00]} Qa5 {[%emt 0:00:00]} 8. e3
{[%emt 0:00:00]} Rd8 {[%emt 0:00:00]} 9. Bd6 {[%emt 0:00:17]} dxc4 {[%emt 0:00:
00]} 10. Qa4 {[%emt 0:06:47]} Qxa4 {[%emt 0:00:00]} 11. Nxa4 {[%emt 0:00:30]}
Bxd6 {[%emt 0:00:00]} 12. cxd6 {[%emt 0:00:37]} b5 {[%emt 0:01:21]} 13. Nc3 {
[%emt 0:01:16]} a6 {[%emt 0:17:20]} 14. a4 {[%emt 0:01:34]} Nd5 {[%emt 0:15:26]
} 15. Rd1 {[%emt 0:04:26]} Nxc3 {[%emt 0:10:35]} 16. bxc3 {[%emt 0:00:30]} Bb7
{[%emt 0:02:15]} 17. Be2 {[%emt 0:02:53]} Nd7 {[%emt 0:05:25]} 18. O-O {
[%emt 0:02:06]} Bxf3 {[%emt 0:06:26]} 19. Bxf3 {[%emt 0:01:13]} Rab8 {[%emt 0:
00:39]} 20. axb5 {[%emt 0:01:47]} axb5 {[%emt 0:00:51]} 21. Ra1 {[%emt 0:15:09]
} Nc5 {[%emt 0:06:32]} 22. Rfb1 {[%emt 0:04:04]} Rb6 {[%emt 0:08:57]} 23. Rb4 {
[%emt 0:04:03]} Nd3 {[%emt 0:11:56]} 24. Rbb1 {[%emt 0:00:30]} g6 {[%emt 0:01:
28]} 25. h3 {[%emt 0:08:10]} Rdxd6 {[%emt 0:01:17]} 26. Ra5 {[%emt 0:00:34]} b4
{[%emt 0:06:58]} 27. Ra8+ {[%emt 0:01:56]} Kg7 {[%emt 0:00:30]} 28. cxb4 {
[%emt 0:00:30]} Nxb4 {[%emt 0:01:26]} 29. Rc8 {[%emt 0:06:15]} Nd3 {[%emt 0:00:
33]} 30. Rd1 {[%emt 0:02:59]} Rb4 {[%emt 0:01:35]} 31. Rd2 {[%emt 0:02:39]}
Rdb6 {[%emt 0:01:00]} 32. Rc2 {[%emt 0:02:50]} Rb1+ {[%emt 0:00:39]} 33. Kh2 {
[%emt 0:00:30]} R1b2 {[%emt 0:01:09]} 34. R8xc4 {[%emt 0:01:27]} Nxf2 {[%emt 0:
00:30]} 35. Rxb2 {[%emt 0:01:13]} Rxb2 {[%emt 0:00:30]} 36. Rd4 {[%emt 0:00:35]
} Rb3 {[%emt 0:01:00]} 37. Kg3 {[%emt 0:01:25]} Nd3 {[%emt 0:00:33]} 38. h4 {
[%emt 0:02:15]} h6 {[%emt 0:00:47]} 39. Ra4 {[%emt 0:05:04]} Nb2 {[%emt 0:01:
23]} 40. Re4 {[%emt 0:00:37]} Nd3 {[%emt 0:01:04]} 41. Rd4 {[%emt 0:01:16]} Rc3
{[%emt 0:00:00]} 42. Be2 {[%emt 0:00:00]} Nc5 {[%emt 0:00:00]} 43. Kf2 {
[%emt 0:00:00]} f5 {[%emt 0:00:00]} 44. g4 {[%emt 0:00:00]} Ne4+ {[%emt 0:00:
00]} 45. Kf3 {[%emt 0:00:00]} Rc2 {[%emt 0:00:00]} 46. gxf5 {[%emt 0:00:00]}
gxf5 {[%emt 0:00:47]} 47. Rd7+ {[%emt 0:00:00]} Kf6 {[%emt 0:00:30]} 48. Rh7 {
[%emt 0:00:00]} h5 {[%emt 0:00:40]} 49. Rh6+ {[%emt 0:00:00]} Ke5 {[%emt 0:00:
30]} 50. Rxh5 {[%emt 0:00:00]} Rxe2 {[%emt 0:01:04]} 51. Rxf5+ {[%emt 0:00:00]}
Kxf5 {[%emt 0:00:43]} 52. Kxe2 {[%emt 0:00:00]} Kg4 {[%emt 0:00:36]} 53. Kd3 {
[%emt 0:00:00]} Nf6 {[%emt 0:00:54]} 54. Kd4 {[%emt 0:00:00]} Nd7 {[%emt 0:00:
30]} 0-1

[Event "12th Philadelphia Open"]
[Site "Philadelphia"]
[Date "2018.03.31"]
[Round "7.3"]
[White "Bryant, John Daniel"]
[Black "Li, Ruifeng"]
[Result "0-1"]
[ECO "C76"]
[WhiteElo "2461"]
[BlackElo "2585"]
[PlyCount "80"]
[EventDate "2018.03.??"]
[EventType "swiss"]
[EventRounds "9"]
[EventCountry "USA"]
[TimeControl "5400+30"]
[WhiteClock "0:00:11"]
[BlackClock "0:54:42"]

1. e4 {[%emt 0:00:00]} e5 {[%emt 0:00:00]} 2. Nf3 {[%emt 0:00:00]} Nc6 {
[%emt 0:00:00]} 3. Bb5 {[%emt 0:00:00]} a6 {[%emt 0:00:00]} 4. Ba4 {[%emt 0:00:
00]} g6 {[%emt 0:00:00]} 5. c3 {[%emt 0:00:00]} d6 {[%emt 0:00:00]} 6. d4 {
[%emt 0:00:00]} Bd7 {[%emt 0:00:00]} 7. O-O {[%emt 0:00:00]} Bg7 {[%emt 0:00:
00]} 8. Re1 {[%emt 0:00:00]} Nge7 {[%emt 0:00:00]} 9. d5 {[%emt 0:00:00]} Nb8 {
[%emt 0:00:00]} 10. Bxd7+ {[%emt 0:00:00]} Nxd7 {[%emt 0:00:00]} 11. c4 {
[%emt 0:00:00]} O-O {[%emt 0:00:00]} 12. Nc3 {[%emt 0:00:00]} h6 {[%emt 0:00:
00]} 13. Rb1 {[%emt 0:00:00]} f5 {[%emt 0:00:00]} 14. b4 {[%emt 0:00:30]} Nf6 {
[%emt 0:00:00]} 15. Nd2 {[%emt 0:01:07]} c6 {[%emt 0:00:00]} 16. Bb2 {[%emt 0:
22:50]} cxd5 {[%emt 0:00:00]} 17. exd5 {[%emt 0:01:49]} Rc8 {[%emt 0:00:00]}
18. Qb3 {[%emt 0:11:19]} Kh8 {[%emt 0:06:55]} 19. a4 {[%emt 0:02:21]} g5 {
[%emt 0:03:11]} 20. a5 {[%emt 0:05:12]} Nd7 {[%emt 0:00:46]} 21. Na4 {[%emt 0:
03:07]} Ng6 {[%emt 0:03:48]} 22. c5 {[%emt 0:13:23]} g4 {[%emt 0:12:57]} 23.
cxd6 {[%emt 0:05:03]} Qg5 {[%emt 0:00:37]} 24. Nc4 {[%emt 0:00:30]} f4 {
[%emt 0:02:08]} 25. Nd2 {[%emt 0:11:04]} f3 {[%emt 0:02:08]} 26. Ne4 {[%emt 0:
01:13]} Qh4 {[%emt 0:00:30]} 27. Nac5 {[%emt 0:05:39]} Nxc5 {[%emt 0:05:55]}
28. bxc5 {[%emt 0:03:43]} Nf4 {[%emt 0:00:30]} 29. d7 {[%emt 0:03:48]} Rcd8 {
[%emt 0:01:00]} 30. c6 {[%emt 0:01:19]} Nh3+ {[%emt 0:01:47]} 31. Kf1 {[%emt 0:
00:49]} Nxf2 {[%emt 0:00:55]} 32. gxf3 {[%emt 0:03:53]} Qh3+ {[%emt 0:04:08]}
33. Ke2 {[%emt 0:07:33]} Nxe4 {[%emt 0:00:35]} 34. Qe3 {[%emt 0:00:37]} gxf3+ {
[%emt 0:02:55]} 35. Kd3 {[%emt 0:00:30]} bxc6 {[%emt 0:00:56]} 36. dxc6 {
[%emt 0:00:30]} Rxd7+ {[%emt 0:01:21]} 37. cxd7 {[%emt 0:00:30]} Qxd7+ {
[%emt 0:00:30]} 38. Kc2 {[%emt 0:00:30]} Rc8+ {[%emt 0:01:06]} 39. Kb3 {
[%emt 0:00:30]} Qd5+ {[%emt 0:00:40]} 40. Ka4 {[%emt 0:00:30]} Qc4+ {[%emt 0:
00:30]} 0-1